Cogmind - Beta 13 X2 @@@ ROGUE MODE // 2024.01.25 @ 09:26:18 // AFD2020/Player2 Player: Minty Result: Core destroyed Performance ------------- Evolutions (2) 1000 Regions Visited (7) 1400 Robots Destroyed (40) 200 Value Destroyed (1086) 1086 Prototype IDs (27) 540 Alien Tech Used (0) 0 Bonus (775) 775 TOTAL SCORE: 5001 Bonus ------- High Alert Combat Kills 92 Follower Combat Kills 432 Entered Garrisons 200 Aligned with FarCom 300 Friendly Fire -249 Cogmind --------- Core Integrity 0/550 Matter 112/300 Energy 330/330 System Corruption 72% Temperature Warm (195) Movement Walking (196) Ox1 Location -8/Materials Parts ------- > --- POWER (2) -------- Heavy Ion Engine Light Angular Momentum Engine > --- PROPULSION (3) --- Titanium Leg Titanium Leg Improved Carbon-fiber Leg (fused) > --- UTILITY (3) ------ Improved Heat Sink Large Storage Unit Core Analyzer > --- WEAPON (3) ------- Heavy Laser Latent Energy Streamer Heavy Particle Cannon > --- INVENTORY (15) --- Improved Ion Engine High-capacity Battery (250) Medium Matter Pod (100) Improved Light Armor Plating Improved Light Armor Plating Improved Light Armor Plating Authchip [R/Combat] Authchip [R/Combat] Authchip [R/Combat] Tiamat Bomb Trap Tiamat Bomb Trap Tiamat Bomb Trap Tiamat Bomb Trap Peak State ------------ > --- POWER ------------ Heavy Ion Engine Light Angular Momentum Engine > --- PROPULSION ------- Titanium Leg Titanium Leg Improved Carbon-fiber Leg > --- UTILITY ---------- Improved Heat Sink Large Storage Unit Core Analyzer > --- WEAPON ----------- Heavy Laser Latent Energy Streamer Heavy Particle Cannon > --- INVENTORY -------- Improved Ion Engine High-capacity Battery Medium Matter Pod Improved Light Armor Plating Improved Light Armor Plating Improved Light Armor Plating Authchip [R/Combat] Authchip [R/Combat] Authchip [R/Combat] Tiamat Bomb Trap Tiamat Bomb Trap Tiamat Bomb Trap Tiamat Bomb Trap [Rating: 45] Favorites ----------- Power Light Ion Engine Engine Light Ion Engine Power Core Light Nuclear Core Propulsion Aluminum Leg Leg Aluminum Leg Hover Unit Hover Unit Utility Weapon Shielding Device Improved Heat Sink Storage Large Storage Unit Processor Signal Interpreter Protection Weapon Shielding Weapon Light Cannon Energy Gun Heavy Laser Energy Cannon Latent Energy Streamer Ballistic Gun Light Assault Rifle Ballistic Cannon Light Cannon Build | -11 -10 -10 -10 -9 -8 -8 -8 ------- Run | Yrd Mat Min Exi Min Mat Gar Mat Slots Evolved 4 | . . . . . 4 . . Power 1 | . . . . . 1 . . Propulsion 1 | . . . . . 1 . . Utility 1 | . . . . . 1 . . Weapon 1 | . . . . . 1 . . Parts Attached 41 | . 8 1 . 1 16 13 2 Power 7 | . . . . . 2 5 . Engine 6 | . . . . . 1 5 . Core 1 | . . . . . 1 . . Reactor . | . . . . . . . . Propulsion 11 | . 2 1 . 1 5 2 . Treads . | . . . . . . . . Leg 9 | . . 1 . 1 5 2 . Wheel . | . . . . . . . . Hover 2 | . 2 . . . . . . Flight . | . . . . . . . . Utility 6 | . 2 . . . 4 . . Device 2 | . . . . . 2 . . Storage 1 | . . . . . 1 . . Processor 2 | . 1 . . . 1 . . Hackware . | . . . . . . . . Protection 1 | . 1 . . . . . . Artifact . | . . . . . . . . Weapon 17 | . 4 . . . 5 6 2 Energy Gun 1 | . . . . . . 1 . Energy Cannon 7 | . . . . . 2 3 2 Ballistic Gun 6 | . 2 . . . 2 2 . Ballistic Cannon 3 | . 2 . . . 1 . . Launcher . | . . . . . . . . Special Weapon . | . . . . . . . . Impact Weapon . | . . . . . . . . Slashing Weapon . | . . . . . . . . Piercing Weapon . | . . . . . . . . Special Melee Weapon . | . . . . . . . . Unidentified Prototypes 2 | . . . . . 2 . . Corrupted Parts 6 | . . . . . 3 3 . System Corruption 47 | . . . . . 18 29 . Parts Lost 9 | . . 1 . 1 2 5 . Power 4 | . . . . . 1 3 . Propulsion 2 | . . 1 . 1 . . . Utility 1 | . . . . . 1 . . Weapon 2 | . . . . . . 2 . Highest Loss Streak 2 | . . 1 . 1 2 2 . To Critical Strikes . | . . . . . . . . Average Slot Usage (%) 94 | . 97 98 100 98 90 91 95 Engine 14 | . 14 14 14 14 14 15 18 Leg 21 | . 23 4 14 21 26 27 27 Hover 5 | . 4 21 14 4 . . . Device 4 | . . . . . 8 9 9 Storage 5 | . 4 . . . 8 9 9 Processor 9 | . 13 14 14 14 1 9 9 Protection 7 | . 8 14 14 14 6 . . Ballistic Gun 8 | . 24 . . . 2 9 6 Ballistic Cannon 14 | . 2 28 28 28 17 7 . Naked Turns . | . . . . . . . . Heaviest Build 58 | 11 11 10 10 10 49 48 58 Greatest Support 52 | 20 20 12 10 20 51 52 52 Greatest Overweight (x) 1 | . 1 1 . . 1 . 1 Average Overweight (x) . | . . . . . . . . Largest Inventory Capacity 15 | . 8 5 5 5 15 15 15 Average Capacity 10 | . 5 5 5 5 14 15 15 Most Carried 15 | . 6 5 5 5 10 15 15 Average Carried 7 | . 3 4 4 5 6 12 14 Final Capacity 15 | 8 5 5 5 5 15 15 15 Final Carried 14 | 6 4 5 5 5 9 14 13 Class Distribution -------------------- 70% | Mutant 21% | Scavenger-Skirmisher 8% | Scavenger-Mutant Dominant Class ---------------- Mutant | -10/Materials Mutant | -10/Mines Mutant | -10/Exiles Mutant | -9/Mines Scavenger-Skirmisher | -8/Materials Mutant | -8/Garrison Scavenger-Mutant | -8/Materials Resources | -11 -10 -10 -10 -9 -8 -8 -8 ----------- Run | Yrd Mat Min Exi Min Mat Gar Mat Matter Collected 964 | 200 162 123 . 45 268 166 . Remotely . | . . . . . . . . Salvage Created 1485 | . 354 173 . 75 465 418 . Parts 102 | . 24 11 . 5 19 43 . Haulers Intercepted 1 | . . . . . 1 . . Recyclers Shooed 3 | . 3 . . . . . . Parts Field Recycled . | . . . . . . . . Retrieved Matter . | . . . . . . . . Parts Self-Destructed . | . . . . . . . . Prevented . | . . . . . . . . Kills | -11 -10 -10 -10 -9 -8 -8 -8 ------- Run | Yrd Mat Min Exi Min Mat Gar Mat Combat Hostiles Destroyed 33 | . 9 2 . 2 8 12 . Guns 11 | . 9 . . . . 2 . Cannons 13 | . . 2 . 2 5 4 . AOE 8 | . . . . . 2 6 . Classes Destroyed 11 | . 3 2 . 1 4 1 . Worker 3 | . 2 . . . 1 . . Builder 1 | . . 1 . . . . . Hauler 1 | . . . . . 1 . . Recycler 2 | . . 1 . . 1 . . Swarmer 12 | . 2 . . . 2 8 . Grunt 15 | . 7 2 . 1 3 2 . Brawler 1 | . . . . 1 . . . Duelist 1 | . . . . . . 1 . Sentry 2 | . . . . . 1 1 . Specialist 1 | . . . . . 1 . . Hunter 1 | . . . . . 1 . . Best Kill Streak 5 | . 5 3 . 2 5 4 . Combat Bots Only 4 | . 2 2 . 2 2 4 . Max Kills in Single Turn 3 | . 1 1 . 1 2 3 . Gunslinging . | . . . . . . . . Exploded 3 | . . . . . 1 3 . Melee . | . . . . . . . . Uniques/NPCs Destroyed . | . . . . . . . . Combat | -11 -10 -10 -10 -9 -8 -8 -8 -------- Run | Yrd Mat Min Exi Min Mat Gar Mat Hostile Shots Fired 97 | . 30 2 . 4 34 27 . Missed 25 | . 8 1 . . 8 8 . Damage Taken 1378 | . 194 23 . 41 409 711 . Core 191 | . 26 . . 20 34 111 . Absorbed by Shields . | . . . . . . . . Redirected to Shielding 54 | . 21 . . 3 30 . . Core Remaining (%) 78 | 100 . . . 56 . . . Volleys Fired 94 | . 39 6 . 5 19 24 1 Largest 3 | . 2 2 . 2 3 3 3 Hottest 204 | . 40 70 . 70 130 115 204 Shots Fired 201 | . 78 12 . 10 50 49 2 Gun 106 | . 78 . . . 7 20 1 Cannon 95 | . . 12 . 10 43 29 1 Launcher . | . . . . . . . . Special . | . . . . . . . . Kinetic 189 | . 78 12 . 10 46 43 . Thermal 2 | . . . . . . . 2 Explosive . | . . . . . . . . Electromagnetic 10 | . . . . . 4 6 . Robot Hit Streak 7 | . 5 5 . 6 7 6 . Robot Miss Streak 8 | . 3 1 . 2 8 3 2 Penetration Max . | . . . . . . . . Secondary Targets 2 | . 1 . . . . 1 . Max Gunslinging Chain 1 | . 1 . . . . 1 . Shots Hit Robots 110 | . 45 7 . 7 23 28 . Core Hits 76 | . 22 5 . 2 16 31 . Critical Kills . | . . . . . . . . Critical Parts Destroyed . | . . . . . . . . Critical Strikes 2 | . . . . . 2 . . Blast 2 | . . . . . 2 . . Melee Attacks . | . . . . . . . . Impact . | . . . . . . . . Slashing . | . . . . . . . . Piercing . | . . . . . . . . Sneak Attacks . | . . . . . . . . Combat Hostiles . | . . . . . . . . Follow-up Attacks . | . . . . . . . . Damage Inflicted 2663 | . 655 145 . 133 992 738 . Guns 697 | . 538 . . . 40 119 . Cannons 830 | . . 134 . 131 360 205 . Explosions 1115 | . 109 . . . 592 414 . Melee . | . . . . . . . . Ramming 21 | . 8 11 . 2 . . . Kinetic 1487 | . 538 134 . 131 394 290 . Thermal . | . . . . . . . . Explosive 109 | . 109 . . . . . . Electromagnetic 1046 | . . . . . 598 448 . Impact . | . . . . . . . . Slashing . | . . . . . . . . Piercing . | . . . . . . . . Highest Corruption 72 | . . . . . 31 72 72 Average Corruption 35 | . . . . . 14 45 72 Corruption Purged . | . . . . . . . . Corruption Blocked . | . . . . . . . . Effects 48 | . . . . . 14 28 6 Message Errors 9 | . . . . . 4 4 1 Matter Fused 11 | . . . . . . 9 2 Heat Flow Errors 7 | . . . . . 3 2 2 Energy Discharges 3 | . . . . . 1 2 . Parts Fused 1 | . . . . . . 1 . Data Loss (minor) 4 | . . . . . 1 3 . Data Loss (major) 4 | . . . . . 2 2 . Misfires 3 | . . . . . 2 1 . Alerts 1 | . . . . . . 1 . Weapon Failures 5 | . . . . . 1 3 1 Overload Shots . | . . . . . . . . Overflow Damage 18 | . . . . 9 1 8 . Projectiles 9 | . . . . 9 . . . Explosions 9 | . . . . . 1 8 . Melee . | . . . . . . . . Knockbacks 9 | . . . . 5 4 . . Impact . | . . . . . . . . Kinetic 7 | . . . . 3 4 . . Secondary 2 | . . . . 2 . . . Self-Inflicted Damage 166 | . . 5 . . 36 125 . Shots 4 | . . . . . 1 3 . Rammed 1 | . . 1 . . . . . Targets Rammed 5 | . 2 1 . 2 . . . Kicked 4 | . 2 . . 2 . . . Crushed . | . . . . . . . . Highest Temperature 222 | . 12 45 . 69 193 138 222 Average Temperature 53 | . 7 16 . 38 68 35 146 Received Heat Transfer 228 | . 42 9 . 24 117 36 . Siege Activations . | . . . . . . . . Robots Corrupted 2 | . . . . . 2 . . Combat Hostiles 1 | . . . . . 1 . . Parts Fried 1 | . . . . . 1 . . Impact Corruptions . | . . . . . . . . Robots Melted . | . . . . . . . . Combat Hostiles . | . . . . . . . . Parts Melted . | . . . . . . . . Heat Transferred . | . . . . . . . . Parts Sabotaged . | . . . . . . . . Parts Stolen . | . . . . . . . . Parts Stripped . | . . . . . . . . Power Chain Reactions 1 | . . . . . 1 . . Missiles Intercepted . | . . . . . . . . Latent Energy Used 1076 | . . . . . 631 445 . LE Corruption 19 | . . . . . 10 9 . Alert | -11 -10 -10 -10 -9 -8 -8 -8 ------- Run | Yrd Mat Min Exi Min Mat Gar Mat Peak Influence 718 | . 524 212 . 52 698 718 333 Initial 326 | . . 126 . . 20 326 325 Average 303 | . 221 163 . 33 286 499 328 Maximum Alert Level 3 | . 2 1 . . 2 3 1 Low Security (%) 35 | . 58 61 . 100 29 . . Level 1 35 | . 26 38 . . 40 35 100 Level 2 28 | . 15 . . . 29 62 . Level 3 . | . . . . . . 1 . Level 4 . | . . . . . . . . Level 5 . | . . . . . . . . High Security . | . . . . . . . . Max Security . | . . . . . . . . Squads Dispatched 11 | . 5 . . . 4 . 2 Investigation 6 | . 3 . . . 1 . 2 Extermination . | . . . . . . . . Reinforcement 3 | . 2 . . . 1 . . Assault . | . . . . . . . . Garrison 2 | . . . . . 2 . . Intercept . | . . . . . . . . Searches Triggered . | . . . . . . . . Construction Impeded . | . . . . . . . . Haulers Reinforced . | . . . . . . . . Active Scanning Responses . | . . . . . . . . Cargo Convoy Interrupts . | . . . . . . . . Stealth | -11 -10 -10 -10 -9 -8 -8 -8 --------- Run | Yrd Mat Min Exi Min Mat Gar Mat Distress Signals 6 | . 3 . . . 2 . 1 Communications Jammed . | . . . . . . . . Distress Signals . | . . . . . . . . Times Spotted 64 | . 20 2 . 2 19 17 4 Peak Tracking Total 8 | . 5 1 . 2 4 8 6 Tactical Retreats 1 | . 1 . . . . . . Traps | -11 -10 -10 -10 -9 -8 -8 -8 ------- Run | Yrd Mat Min Exi Min Mat Gar Mat Traps Triggered 3 | . . . . . . 3 . Indirectly . | . . . . . . . . Trap Hack Attempts . | . . . . . . . . Triggered . | . . . . . . . . Disarmed . | . . . . . . . . Reprogrammed . | . . . . . . . . Reused 2 | . . . . . . 2 . Traps Extracted . | . . . . . . . . Installed 3 | . . . . . . 2 1 Triggered 2 | . . . . . . 2 . Most Traps Carried 7 | . . . . . . 7 5 Machines | -11 -10 -10 -10 -9 -8 -8 -8 ---------- Run | Yrd Mat Min Exi Min Mat Gar Mat Machines Disabled 5 | . 1 2 . . 2 . . Max in Single Turn 1 | . 1 1 . . 1 . . Machines Repaired . | . . . . . . . . Machines Dismantled . | . . . . . . . . Machines Sabotaged . | . . . . . . . . Overloaded Fab Kills . | . . . . . . . . Hacking | -11 -10 -10 -10 -9 -8 -8 -8 --------- Run | Yrd Mat Min Exi Min Mat Gar Mat Machines Accessed 8 | . 4 . 1 . 1 . 2 Terminals 5 | . 3 . . . . . 2 Fabricators . | . . . . . . . . Repair Stations . | . . . . . . . . Recycling Units 1 | . 1 . . . . . . Scanalyzers . | . . . . . . . . Garrison Access 1 | . . . . . 1 . . Total Hacks 25 | . 16 . 1 . 1 . 7 Successful 9 | . 5 . 1 . 1 . 2 Failed 16 | . 11 . . . . . 5 Catastrophic 8 | . 5 . . . . . 3 Database Lockouts . | . . . . . . . . Manual 9 | . 3 . 1 . . . 5 Terminals 19 | . 12 . . . . . 7 Fabricators . | . . . . . . . . Repair Stations . | . . . . . . . . Recycling Units 4 | . 4 . . . . . . Scanalyzers . | . . . . . . . . Garrison Access 1 | . . . . . 1 . . Terminal Hacks 4 | . 2 . 1 . . . 1 Prototype ID Bank 1 | . 1 . . . . . . Alert Level 1 | . . . . . . . 1 Locate Traps 1 | . 1 . . . . . . Derelict Proto ID Bank 1 | . . . 1 . . . . Fabricator Hacks . | . . . . . . . . Repair Station Hacks . | . . . . . . . . Recycling Unit Hacks 3 | . 3 . . . . . . Process 1 | . 1 . . . . . . Report Inventory 1 | . 1 . . . . . . Retrieve Matter 1 | . 1 . . . . . . Scanalyzer . | . . . . . . . . Garrison Access Hacks 1 | . . . . . 1 . . Unlock Access 1 | . . . . . 1 . . Unauthorized Hacks 1 | . . . . . . . 1 Terminals 1 | . . . . . . . 1 Botnet 1 | . . . . . . . 1 Fabricators . | . . . . . . . . Repair Stations . | . . . . . . . . Recycling Units . | . . . . . . . . Scanalyzers . | . . . . . . . . Garrison Access . | . . . . . . . . Data Cores Recovered . | . . . . . . . . Used . | . . . . . . . . Hacking Detections 6 | . 4 . . . . . 2 Full Trace Events 5 | . 3 . . . . . 2 Feedback Events . | . . . . . . . . Feedback Blocked . | . . . . . . . . Robot Schematics Acquired . | . . . . . . . . Robots Built . | . . . . . . . . Authchips . | . . . . . . . . Time . | . . . . . . . . Total Robot Build Rating . | . . . . . . . . Part Schematics Acquired . | . . . . . . . . Parts Built . | . . . . . . . . Authchips . | . . . . . . . . Time . | . . . . . . . . Total Part Build Rating . | . . . . . . . . Parts Repaired . | . . . . . . . . Time . | . . . . . . . . Parts Recycled . | . . . . . . . . Recycled Matter 96 | . 96 . . . . . . Retrieved Matter 96 | . 96 . . . . . . Retrieved Components . | . . . . . . . . Parts Scanalyzed . | . . . . . . . . Part Schematics Acquired . | . . . . . . . . Parts Damaged . | . . . . . . . . Bothacking | -11 -10 -10 -10 -9 -8 -8 -8 ------------ Run | Yrd Mat Min Exi Min Mat Gar Mat Used RIF Installer . | . . . . . . . . Robots Hacked . | . . . . . . . . Non-combat . | . . . . . . . . Combat . | . . . . . . . . Robot Hacks Applied . | . . . . . . . . Relay Couplers Released . | . . . . . . . . Fabnet Peak Effective % . | . . . . . . . . Robots Rewired . | . . . . . . . . Allies Hacked . | . . . . . . . . Hacks Repelled . | . . . . . . . . Allies | -11 -10 -10 -10 -9 -8 -8 -8 -------- Run | Yrd Mat Min Exi Min Mat Gar Mat Total Allies 1 | . 1 . . . . . . Largest Group 1 | . 1 1 1 1 1 1 1 Highest-Rated Group 78 | . 57 58 58 58 78 78 65 Highest-Rated Ally 78 | . 57 58 58 58 78 78 65 Total Orders . | . . . . . . . . Ally Attacks 95 | . 33 . . . 32 26 4 Total Damage 2058 | . 402 . . . 1065 546 45 Kills 28 | . 7 . . . 15 6 . Allies Corrupted . | . . . . . . . . Allies Melted . | . . . . . . . . Intel | -11 -10 -10 -10 -9 -8 -8 -8 ------- Run | Yrd Mat Min Exi Min Mat Gar Mat Robot Analysis Total . | . . . . . . . . Derelict Logs Recovered 1 | . . 1 . . . . . Drone Launches . | . . . . . . . . Drone Recoveries . | . . . . . . . . Exploration | -11 -10 -10 -10 -9 -8 -8 -8 ------------- Run | Yrd Mat Min Exi Min Mat Gar Mat Turns Passed 1961 | . 440 182 282 94 417 471 75 Spaces Moved 1202 | 1 255 215 215 31 186 247 52 Core . | . . . . . . . . Treads . | . . . . . . . . Legs 981 | 1 207 42 215 31 186 247 52 Wheels . | . . . . . . . . Hover 221 | . 48 173 . . . . . Flight . | . . . . . . . . Fastest Speed 56 | 120 56 56 120 120 120 126 126 Average Speed 118 | 120 108 70 120 120 173 126 127 Slowest Speed 196 | 120 120 120 120 120 195 130 196 Overloaded Moves . | . . . . . . . . Propulsion Burnouts . | . . . . . . . . Robots Hopped . | . . . . . . . . Cave-ins Triggered . | . . . . . . . . Exploration Rate (%) 30 | 2 60 42 61 10 22 40 7 Regions Visited 7 Branch Regions 3 Pre-discovered Areas . | . . . . . . . . Known Exits Taken 5 | . 1 1 1 1 1 . . Unknown Exits Taken 1 | 1 . . . . . . . Scrap Searched 1 | . . 1 . . . . . Spaces Dug . | . . . . . . . . Terrain Destroyed 63 | . 10 . . . 52 . 1 Melee . | . . . . . . . . Projectile 1 | . . . . . . . 1 AOE 62 | . 10 . . . 52 . . Terrain Rammed . | . . . . . . . . Walls Destroyed . | . . . . . . . . Machines Disabled . | . . . . . . . . Actions | -11 -10 -10 -10 -9 -8 -8 -8 --------- Run | Yrd Mat Min Exi Min Mat Gar Mat Total 1560 | . 352 233 239 77 237 362 60 Wait 151 | . 27 10 23 39 5 47 . Move 1196 | . 254 214 214 30 186 246 52 Hop . | . . . . . . . . Pick Up 27 | . 7 1 1 . 4 13 1 Fast Attach 23 | . 4 1 . 1 10 6 1 Attach 9 | . 2 . . . 2 4 1 Detach 8 | . 1 . . . 4 3 . Swap 9 | . 2 . . . 4 3 . Drop 30 | . 14 . 1 . 3 9 3 Fire 94 | . 39 6 . 5 19 24 1 Melee . | . . . . . . . . Ram 1 | . . 1 . . . . . Kick 4 | . 2 . . 2 . . . Crush . | . . . . . . . . Escape Stasis 5 | . . . . . . 5 . Rewire . | . . . . . . . . Trap 3 | . . . . . . 2 1 Miscellaneous . | . . . . . . . . Route ------- -11/Scrapyard -10/Materials -10/Mines (discovered 3 exits: [*Mat x2] / *Exi) -10/Exiles -9/Mines -8/Materials -8/Garrison (discovered 2 exits: *Mat x2) -8/Materials History --------- Turn | Location | Event 1 | -11/Scrapyard | Discovered new exit (range 0) 1 | -11/Scrapyard | Entered Materials 300 | -10/Materials | Build established: Mutant 394 | -10/Materials | Discovered new exit (range 16) 413 | -10/Materials | Identified exit to Mines 441 | -10/Materials | Entered Mines 471 | -10/Mines | Learned Materials garrison access intel 483 | -10/Mines | Discovered new exit (range 6) 546 | -10/Mines | Discovered new exit (range 10) 608 | -10/Mines | Deemed a non-threat by the Exiles lab entrance 609 | -10/Mines | Discovered new exit (range 5) 613 | -10/Mines | Identified exit to Exiles 623 | -10/Mines | Entered Exiles 656 | -10/Exiles | Met 8R-AWN 674 | -10/Exiles | Met EX-HEX 705 | -10/Exiles | Met EX-BIN 719 | -10/Exiles | Aligned with FarCom system 721 | -10/Exiles | Given EX-Vault access code 751 | -10/Exiles | Opened EX-Vault 760 | -10/Exiles | Found Latent Energy Streamer 788 | -10/Exiles | Warned to stay clear of 0b10 Research branches 801 | -10/Exiles | Exiles lab attacked by MAIN.C 864 | -10/Exiles | Discovered new exit (range 14) 876 | -10/Exiles | Identified exit to Mines 905 | -10/Exiles | Left Exiles lab with Latent Energy Streamer 905 | -10/Exiles | Entered Mines 927 | -9/Mines | Met a Derelict bent on vengeance 932 | -9/Mines | Discovered new exit (range 8) 959 | -9/Mines | Identified exit to Materials 999 | -9/Mines | Entered Materials 999 | -8/Materials | Evolved 4 slots: Power x1, Propulsion x1, Utility x1, Weapon x1 1000 | -8/Materials | Loaded intel: 1 garrison access location 1242 | -8/Materials | Garrison activated, responded to threat 1292 | -8/Materials | System corruption reached 10% 1338 | -8/Materials | System corruption reached 30% 1372 | -8/Materials | Garrison activated, responded to threat 1411 | -8/Materials | Identified exit to Garrison 1416 | -8/Materials | Entered Garrison 1424 | -8/Garrison | Triggered checkpoint 1440 | -8/Garrison | Discovered new exit (range 5) 1660 | -8/Garrison | Triggered checkpoint 1706 | -8/Garrison | Triggered checkpoint 1734 | -8/Garrison | Core integrity fell below 50% 1772 | -8/Garrison | Triggered checkpoint 1786 | -8/Garrison | Triggered checkpoint 1829 | -8/Garrison | Core integrity fell below 20% 1830 | -8/Garrison | Discovered new exit (range 9) 1887 | -8/Garrison | Entered Materials 1962 | -8/Materials | Core destroyed Last Messages --------------- Testing... Terminal linked with 0 systems. Awaiting botnet instructions. >>Alert(Check) Current Alert Level: 1-S 01921_ ALERT: Suspicious activity at Terminal M008. Dispatching Investigation squad. 01921_ Player 2 acquires Imp. Targeting Computer. 01924_ Player 2 acquires Lgt. Assault Rifle. 01925_ System corrupted: Matter fused (-5). 01927_ Player 2 acquires Lgt. Assault Rifle. 01940_ Connecting with Terminal... 01940_ ALERT: Suspicious activity at Terminal M012. Dispatching Investigation squad. 01942_ System corrupted: Heat flow error (+248). 01948_ W-25 Informer sends out distress signal. 01949_ Dropped Tiamat Bomb Trap. 01949_ Installed Tiamat Bomb Trap. 01957_ System corrupted: Heat flow error (+254). 01960_ System corrupted: Latent Energy Streamer failed to cycle. Map ----- +----------------------------------------------------+ | | | | | ?????????????????????????????????????????????????? | | ?????????????????????????????????????????????????? | | ?????????????????????????????????????????????????? | | ?????????????????????????????????????????????????? | | ?????????????????????????????????????????????????? | | ?????????????????????????????????????????????????? | | ?????????????????????????????????????????????????? | | ?????????????????????????????????????????????????? | | ?????????????????????????????????????????????????? | | ?????????????????????????????????????????????????? | | ???????????????#####?????????????????????????????? | | ???????????????# ###########???????????????????? | | ???????????????# # #???????????????????? | | ???????????????# # #???????????????????? | | ???????????????# # #???????????????????? | | ???????????????# # #???????????????????? | | ???????????????# + #???????????????????? | | ???????????????# # #???????????????????? | | ????????######## # #????????????g??????? | | ????????# """ # # +???????????????????? | | ????????# "T" # ###########???????????????????? | | ????????# + ########T######???????????????? | | ????????# / # #???????????????? | | ????????# [ # @ +???????????????? | | ????????# # = #???????????????? | | ????????############### @ #???????????????? | | ??????????????????????# ^^ #???????????????? | | ??????????????????????# " "" #???????????????? | | ???????????????######## "R"" #???????????????? | | ???????????????# ^ """" #???????????????? | | ????????/ Y gg#??????????????? | | ??????????# r g ?????????????? | | ??????????# #######+##########????????????? | | ??????????# ????????? *????????????????????? | | ??????????# ??????????? ???????????????????? | | ??????????# ????????????? #??????????????????? | | ??????????/ ???????????????#??????????????????? | | ??????????# ???????????????????????????????????? | | ??????????# ????????????????????????????????????? | | ?????????????????????????????????????????????????? | | ?????????????????????????????????????????????????? | | ?????????????????????????????????????????????????? | | ?????????????????????????????????????????????????? | | ?????????????????????????????????????????????????? | | ?????????????????????????????????????????????????? | | ?????????????????????????????????????????????????? | | ?????????????????????????????????????????????????? | | ?????????????????????????????????????????????????? | +----------------------------------------------------+ Best States ------------- Heat Dissipation 45 Energy Generation 27 Energy Capacity 445 Matter Stores 300 Matter Capacity 300 Sight Range 16 Terrain Scan Density 10 Weapon Shielding 33 Evasion (%) 55 Core Analysis 6 Authchip Count 3 Item Schematics ----------------- None Robot Schematics ------------------ None Fabricated ------------ Nothing Alien Tech Used ----------------- None Achievements -------------- None Challenges ------------ None Player 2 | -11 -10 -10 -10 -9 -8 -8 -8 ---------- Run | Yrd Mat Min Exi Min Mat Gar Mat Slots Evolved 4 | . . . . 4 . . . Power . | . . . . . . . . Propulsion 2 | . . . . 2 . . . Utility 1 | . . . . 1 . . . Weapon 1 | . . . . 1 . . . Parts Attached 52 | . 13 1 . . 14 22 2 Parts Lost 19 | . . . . . 3 16 . Damage Taken 2540 | . 317 . . . 415 1733 75 Core 474 | . 64 . . . 78 301 31 Player 2/Cogmind (%) 71 | . 71 . . . 69 73 100 Absorbed by Shields 208 | . . . . . 32 176 . Damage Inflicted 2058 | . 402 . . . 1065 546 45 Player 2/Cogmind (%) 43 | . 38 . . . 51 42 100 Combat Hostiles Destroyed 22 | . 5 . . . 11 6 . Player 2/Cogmind (%) 40 | . 35 . . . 57 33 . Game ------ Seed MultinovaSpliceField Manual? 0 Play Time 00:13:03 Cumulative 620.2 hours Start 2024.01.25 @ 09:13:56 End 2024.01.25 @ 09:26:18 Sessions 1 Manual Loads 0 Difficulty Rogue Special Mode AFD2020/Player2 Game No. 576 Rogue 303 Adventurer 123 Explorer 150 Win Type - Total 25 Types 19/0/4/1/0/0/0/1/0 Lore% 80 Gallery% 90 Achievement% 76 Wizard Run 0 Options --------- ASCII 0 Keyboard 1 Movement Numpad Keybinds 0 Fullscreen 2 Font 18/X11Bold Map View 76x50 Zoom Use 0% Tactical HUD 1 Map Filters NONE Filters NONE Steam 1 RUN: 7bf9cff9-6408-43d3-992e-493d5f450a2c